Workbook

Sheet 使い方
A1: このテンプレートの使い方

Sheet 使用例
B2: セールス活動表 | H2: 実施日：
Y6: 祝日設定
B7: 会社名 | C7: マイクロマウス | G7: =B17 -> 2013-09-01 | I7: 10000 | Y7: 2011-01-01
Y8: 2011-01-10
B9: 数値入力用キーパッド | Y9: 2011-02-11
Y10: 2011-03-21
Y11: 2011-04-29
Y12: 2011-05-03
Y13: 2011-05-04
Y14: 2011-05-05
Y15: 2011-07-18
B16: 日付 | C16: 日割予算（千円） | D16: 実績（千円） | E16: 差（千円） | G16: 月予算達成率 | H16: 累計実績（千円） | I16: 残（千円） | J16: 備考
B17: =DATE(YEAR(TODAY()),B49,1) -> 2013-09-01 | C17: 200 | D17: 180 | E17: =IF(D17="","",D17-C17) -> -20 | F17: =IF(E17="","",E17-D17) -> -200 | G17: =IF(D17="","",H17/$I$7) -> 0.018 | H17: =IF(D17="","",D17) -> 180 | I17: =IF(D17="","",IF($I$7-H17<0,"0",$I$7-H17)) -> 9820 | Y17: 2011-09-19
B18: =IF(ISERROR(IF(MONTH(B17+1)=MONTH(B17), B17+1,"")),"",IF(MONTH(B17+1)=MONTH(B17), B17+1,"")) -> 2013-09-02 | C18: 200 | D18: 200 | E18: =IF(D18="","",D18-C18) -> 0 | F18: -200 | G18: =IF(D18="","",H18/$I$7) -> 0.038 | H18: =IF(D18="","",D18+H17) -> 380 | I18: =IF(D18="","",IF($I$7-H18<0,"0",$I$7-H18)) -> 9620 | Y18: 2011-09-23
B19: 2013-09-03 | C19: 300 | D19: 330 | E19: 30 | F19: -300 | G19: 0.071 | H19: =IF(D19="","",D19+H18) -> 710 | I19: 9290 | Y19: 2011-10-10
B20: 2013-09-04 | C20: 400 | D20: 200 | E20: -200 | F20: -400 | G20: 0.091 | H20: 910 | I20: 9090 | Y20: 2011-11-03
B21: 2013-09-05 | C21: 200 | D21: 100 | E21: -100 | F21: -200 | G21: 0.101 | H21: 1010 | I21: 8990 | Y21: 2011-11-23
B22: 2013-09-06 | C22: 300 | D22: 100 | E22: -200 | F22: -300 | G22: 0.111 | H22: 1110 | I22: 8890 | Y22: 2011-12-23
B23: 2013-09-07 | C23: 200 | D23: 100 | E23: -100 | F23: -200 | G23: 0.121 | H23: 1210 | I23: 8790 | Y23: 2011-12-30
B24: 2013-09-08 | C24: 150 | D24: 150 | E24: 0 | F24: -150 | G24: 0.136 | H24: 1360 | I24: 8640 | Y24: 2011-12-31
B25: 2013-09-09 | C25: 180 | D25: 130 | E25: -50 | F25: -180 | G25: 0.149 | H25: 1490 | I25: 8510 | Y25: 2012-01-01
B26: 2013-09-10 | C26: 300 | D26: 200 | E26: -100 | F26: -300 | G26: 0.169 | H26: 1690 | I26: 8310 | Y26: 2012-01-02
B27: 2013-09-11 | C27: 300 | D27: 210 | E27: -90 | F27: -300 | G27: 0.19 | H27: 1900 | I27: 8100 | Y27: 2012-01-09
B28: 2013-09-12 | C28: 100 | D28: 80 | E28: -20 | F28: -100 | G28: 0.198 | H28: 1980 | I28: 8020 | Y28: 2012-02-11
B29: 2013-09-13 | C29: 120 | D29: 80 | E29: -40 | F29: -120 | G29: 0.206 | H29: 2060 | I29: 7940 | Y29: 2012-03-20
B30: 2013-09-14 | C30: 130 | D30: 90 | E30: -40 | F30: -130 | G30: 0.215 | H30: 2150 | I30: 7850 | Y30: 2012-04-29
B31: 2013-09-15 | C31: 150 | D31: 100 | E31: -50 | F31: -150 | G31: 0.225 | H31: 2250 | I31: 7750 | Y31: 2012-04-30
B32: 2013-09-16 | C32: 100 | D32: 50 | E32: -50 | F32: -100 | G32: 0.23 | H32: 2300 | I32: 7700 | Y32: 2012-05-03
B33: 2013-09-17 | C33: 180 | D33: 130 | E33: -50 | F33: -180 | G33: 0.243 | H33: 2430 | I33: 7570 | Y33: 2012-05-04
B34: 2013-09-18 | C34: 300 | D34: 200 | E34: -100 | F34: -300 | G34: 0.263 | H34: 2630 | I34: 7370 | Y34: 2012-05-05
B35: 2013-09-19 | C35: 200 | D35: 180 | E35: -20 | F35: -200 | G35: 0.281 | H35: 2810 | I35: 7190 | Y35: 2012-07-16
B36: 2013-09-20 | C36: 210 | D36: 170 | E36: -40 | F36: -210 | G36: 0.298 | H36: 2980 | I36: 7020 | Y36: 2012-09-17
B37: 2013-09-21 | C37: 300 | D37: 190 | E37: -110 | F37: -300 | G37: 0.317 | H37: 3170 | I37: 6830 | Y37: 2012-09-22
B38: 2013-09-22 | C38: 180 | D38: 100 | E38: -80 | F38: -180 | G38: 0.327 | H38: 3270 | I38: 6730 | Y38: 2012-10-08
B39: 2013-09-23 | C39: 150 | D39: 120 | E39: -30 | F39: -150 | G39: 0.339 | H39: 3390 | I39: 6610 | Y39: 2012-11-03
B40: 2013-09-24 | C40: 130 | D40: 70 | E40: -60 | F40: -130 | G40: 0.346 | H40: 3460 | I40: 6540 | Y40: 2012-11-23
B41: 2013-09-25 | C41: 140 | D41: 90 | E41: -50 | F41: -140 | G41: 0.355 | H41: 3550 | I41: 6450 | Y41: 2012-12-23
B42: 2013-09-26 | C42: 160 | D42: 110 | E42: -50 | F42: -160 | G42: 0.366 | H42: 3660 | I42: 6340 | Y42: 2012-12-24
B43: 2013-09-27 | C43: 180 | D43: 150 | E43: -30 | F43: -180 | G43: 0.381 | H43: 3810 | I43: 6190 | Y43: 2013-01-01
B44: 2013-09-28 | C44: 190 | D44: 110 | E44: -80 | F44: -190 | G44: 0.392 | H44: 3920 | I44: 6080 | Y44: 2013-01-14
B45: 2013-09-29 | C45: 220 | D45: 150 | E45: -70 | F45: -220 | G45: 0.407 | H45: 4070 | I45: 5930 | Y45: 2013-02-11
B46: 2013-09-30 | C46: 210 | D46: 150 | E46: -60 | F46: -210 | G46: 0.422 | H46: 4220 | I46: 5780 | Y46: 2013-03-20
C47: 200 | D47: 140 | E47: -60 | F47: -200 | G47: 0.436 | H47: 4360 | I47: 5640 | Y47: 2013-04-29
B48: =B17 -> 2013-09-01 | C48: =SUM(C17:C47) -> 6280 | D48: =SUM(D17:D47) -> 4360 | E48: =SUM(E17:E47) -> -1920 | F48: =IF(D48="","",G48/$H$3) ->  | G48: =IF(D48=0,0,H48/$I$7) -> 0.436 | H48: =SUM(D17:D47) -> 4360 | I48: =IF(D48="","",IF($I$7-H48<0,"0",$I$7-H48)) -> 5640 | Y48: 2013-05-03
B49: 9 | Y49: 2013-05-04
B50: 売上管理グラフ | Y50: 2013-05-06
Y51: 2013-07-15
Y52: 2013-09-16
Y53: 2013-09-23
Y54: 2013-10-14
Y55: 2013-11-03
Y56: 2013-11-04
Y57: 2013-11-23
Y58: 2013-12-23
Y59: 2014-01-01
Y60: 2014-01-13
Y61: 2014-02-11
Y62: 2014-03-21
Y63: 2014-04-29
Y64: 2014-05-03
Y65: 2014-05-04
Y66: 2014-05-05
Y67: 2014-05-06
Y68: 2014-07-21
Y69: 2014-09-15
Y70: 2014-09-23
Y71: 2014-10-13
Y72: 2014-11-03
Y73: 2014-11-23
Y74: 2014-11-24
Y75: 2014-12-23
Y76: 2015-01-01
Y77: 2015-01-12
Y78: 2015-02-11
Y79: 2015-03-21
Y80: 2015-04-29
Y81: 2015-05-03
Y82: 2015-05-04
Y83: 2015-05-05
Y84: 2015-05-06
Y85: 2015-07-20
Y86: 2015-09-21
Y87: 2015-09-22
Y88: 2015-09-23
Y89: 2015-10-12
Y90: 2015-11-03
Y91: 2015-11-23
Y92: 2015-12-23
Y93: 2016-01-01
Y94: 2016-01-11
Y95: 2016-02-11
Y96: 2016-03-20
Y97: 2016-03-21
Y98: 2016-04-29
Y99: 2016-05-03
Y100: 2016-05-04
Y101: 2016-05-05
Y102: 2016-07-18
Y103: 2016-09-19
Y104: 2016-09-22
Y105: 2016-10-10
Y106: 2016-11-03
Y107: 2016-11-23
Y108: 2016-12-23

Sheet 10月セールス活動表
B2: セールス活動表 | H2: 実施日：
Y6: 祝日設定
B7: 会社名 | G7: =B17 -> 2013-10-01 | Y7: 2011-01-01
Y8: 2011-01-10
B9: 数値入力用キーパッド | Y9: 2011-02-11
Y10: 2011-03-21
Y11: 2011-04-29
Y12: 2011-05-03
Y13: 2011-05-04
Y14: 2011-05-05
Y15: 2011-07-18
B16: 日付 | C16: 日割予算（千円） | D16: 実績（千円） | E16: 差（千円） | G16: 月予算達成率 | H16: 累計実績（千円） | I16: 残（千円） | J16: 備考
B17: =DATE(YEAR(TODAY()),B49,1) -> 2013-10-01 | E17: =IF(D17="","",D17-C17) ->  | F17: =IF(E17="","",E17-D17) ->  | G17: =IF(D17="","",H17/$I$7) ->  | H17: =IF(D17="","",D17) ->  | I17: =IF(D17="","",IF($I$7-H17<0,"0",$I$7-H17)) ->  | Y17: 2011-09-19
B18: =IF(ISERROR(IF(MONTH(B17+1)=MONTH(B17), B17+1,"")),"",IF(MONTH(B17+1)=MONTH(B17), B17+1,"")) -> 2013-10-02 | E18: =IF(D18="","",D18-C18) ->  | F18: =IF(E18="","",E18-D18) ->  | G18: =IF(D18="","",H18/$I$7) ->  | H18: =IF(D18="","",D18+H17) ->  | I18: =IF(D18="","",IF($I$7-H18<0,"0",$I$7-H18)) ->  | Y18: 2011-09-23
B19: 2013-10-03 | H19: =IF(D19="","",D19+H18) ->  | Y19: 2011-10-10
B20: 2013-10-04 | Y20: 2011-11-03
B21: 2013-10-05 | Y21: 2011-11-23
B22: 2013-10-06 | Y22: 2011-12-23
B23: 2013-10-07 | Y23: 2011-12-30
B24: 2013-10-08 | Y24: 2011-12-31
B25: 2013-10-09 | Y25: 2012-01-01
B26: 2013-10-10 | Y26: 2012-01-02
B27: 2013-10-11 | Y27: 2012-01-09
B28: 2013-10-12 | Y28: 2012-02-11
B29: 2013-10-13 | Y29: 2012-03-20
B30: 2013-10-14 | Y30: 2012-04-29
B31: 2013-10-15 | Y31: 2012-04-30
B32: 2013-10-16 | Y32: 2012-05-03
B33: 2013-10-17 | Y33: 2012-05-04
B34: 2013-10-18 | Y34: 2012-05-05
B35: 2013-10-19 | Y35: 2012-07-16
B36: 2013-10-20 | Y36: 2012-09-17
B37: 2013-10-21 | Y37: 2012-09-22
B38: 2013-10-22 | Y38: 2012-10-08
B39: 2013-10-23 | Y39: 2012-11-03
B40: 2013-10-24 | Y40: 2012-11-23
B41: 2013-10-25 | Y41: 2012-12-23
B42: 2013-10-26 | Y42: 2012-12-24
B43: 2013-10-27 | Y43: 2013-01-01
B44: 2013-10-28 | Y44: 2013-01-14
B45: 2013-10-29 | Y45: 2013-02-11
B46: 2013-10-30 | Y46: 2013-03-20
B47: 2013-10-31 | Y47: 2013-04-29
B48: =B17 -> 2013-10-01 | C48: =SUM(C17:C47) -> 0 | D48: =SUM(D17:D47) -> 0 | E48: =SUM(E17:E47) -> 0 | F48: =IF(D48="","",G48/$H$3) ->  | G48: =IF(D48=0,0,H48/$I$7) -> 0 | H48: =SUM(D17:D47) -> 0 | I48: =IF(D48="","",IF($I$7-H48<0,"0",$I$7-H48)) -> 0 | Y48: 2013-05-03
B49: 10 | Y49: 2013-05-04
B50: 売上管理グラフ | Y50: 2013-05-06
Y51: 2013-07-15
Y52: 2013-09-16
Y53: 2013-09-23
Y54: 2013-10-14
Y55: 2013-11-03
Y56: 2013-11-04
Y57: 2013-11-23
Y58: 2013-12-23
Y59: 2014-01-01
Y60: 2014-01-13
Y61: 2014-02-11
Y62: 2014-03-21
Y63: 2014-04-29
Y64: 2014-05-03
Y65: 2014-05-04
Y66: 2014-05-05
Y67: 2014-05-06
Y68: 2014-07-21
Y69: 2014-09-15
Y70: 2014-09-23
Y71: 2014-10-13
Y72: 2014-11-03
Y73: 2014-11-23
Y74: 2014-11-24
Y75: 2014-12-23
Y76: 2015-01-01
Y77: 2015-01-12
Y78: 2015-02-11
Y79: 2015-03-21
Y80: 2015-04-29
Y81: 2015-05-03
Y82: 2015-05-04
Y83: 2015-05-05
Y84: 2015-05-06
Y85: 2015-07-20
Y86: 2015-09-21
Y87: 2015-09-22
Y88: 2015-09-23
Y89: 2015-10-12
Y90: 2015-11-03
Y91: 2015-11-23
Y92: 2015-12-23
Y93: 2016-01-01
Y94: 2016-01-11
Y95: 2016-02-11
Y96: 2016-03-20
Y97: 2016-03-21
Y98: 2016-04-29
Y99: 2016-05-03
Y100: 2016-05-04
Y101: 2016-05-05
Y102: 2016-07-18
Y103: 2016-09-19
Y104: 2016-09-22
Y105: 2016-10-10
Y106: 2016-11-03
Y107: 2016-11-23
Y108: 2016-12-23

Sheet 11月セールス活動表
B2: セールス活動表 | H2: 実施日：
Y6: 祝日設定
B7: 会社名 | G7: =B17 -> 2013-11-01 | Y7: 2011-01-01
Y8: 2011-01-10
B9: 数値入力用キーパッド | Y9: 2011-02-11
Y10: 2011-03-21
Y11: 2011-04-29
Y12: 2011-05-03
Y13: 2011-05-04
Y14: 2011-05-05
Y15: 2011-07-18
B16: 日付 | C16: 日割予算（千円） | D16: 実績（千円） | E16: 差（千円） | G16: 月予算達成率 | H16: 累計実績（千円） | I16: 残（千円） | J16: 備考
B17: =DATE(YEAR(TODAY()),B49,1) -> 2013-11-01 | E17: =IF(D17="","",D17-C17) ->  | F17: =IF(E17="","",E17-D17) ->  | G17: =IF(D17="","",H17/$I$7) ->  | H17: =IF(D17="","",D17) ->  | I17: =IF(D17="","",IF($I$7-H17<0,"0",$I$7-H17)) ->  | Y17: 2011-09-19
B18: =IF(ISERROR(IF(MONTH(B17+1)=MONTH(B17), B17+1,"")),"",IF(MONTH(B17+1)=MONTH(B17), B17+1,"")) -> 2013-11-02 | E18: =IF(D18="","",D18-C18) ->  | G18: =IF(D18="","",H18/$I$7) ->  | H18: =IF(D18="","",D18+H17) ->  | I18: =IF(D18="","",IF($I$7-H18<0,"0",$I$7-H18)) ->  | Y18: 2011-09-23
B19: 2013-11-03 | H19: =IF(D19="","",D19+H18) ->  | Y19: 2011-10-10
B20: 2013-11-04 | Y20: 2011-11-03
B21: 2013-11-05 | Y21: 2011-11-23
B22: 2013-11-06 | Y22: 2011-12-23
B23: 2013-11-07 | Y23: 2011-12-30
B24: 2013-11-08 | Y24: 2011-12-31
B25: 2013-11-09 | Y25: 2012-01-01
B26: 2013-11-10 | Y26: 2012-01-02
B27: 2013-11-11 | Y27: 2012-01-09
B28: 2013-11-12 | Y28: 2012-02-11
B29: 2013-11-13 | Y29: 2012-03-20
B30: 2013-11-14 | Y30: 2012-04-29
B31: 2013-11-15 | Y31: 2012-04-30
B32: 2013-11-16 | Y32: 2012-05-03
B33: 2013-11-17 | Y33: 2012-05-04
B34: 2013-11-18 | Y34: 2012-05-05
B35: 2013-11-19 | Y35: 2012-07-16
B36: 2013-11-20 | Y36: 2012-09-17
B37: 2013-11-21 | Y37: 2012-09-22
B38: 2013-11-22 | Y38: 2012-10-08
B39: 2013-11-23 | Y39: 2012-11-03
B40: 2013-11-24 | Y40: 2012-11-23
B41: 2013-11-25 | Y41: 2012-12-23
B42: 2013-11-26 | Y42: 2012-12-24
B43: 2013-11-27 | Y43: 2013-01-01
B44: 2013-11-28 | Y44: 2013-01-14
B45: 2013-11-29 | Y45: 2013-02-11
B46: 2013-11-30 | Y46: 2013-03-20
Y47: 2013-04-29
B48: =B17 -> 2013-11-01 | C48: =SUM(C17:C47) -> 0 | D48: =SUM(D17:D47) -> 0 | E48: =SUM(E17:E47) -> 0 | F48: =IF(D48="","",G48/$H$3) ->  | G48: =IF(D48=0,0,H48/$I$7) -> 0 | H48: =SUM(D17:D47) -> 0 | I48: =IF(D48="","",IF($I$7-H48<0,"0",$I$7-H48)) -> 0 | Y48: 2013-05-03
B49: 11 | Y49: 2013-05-04
B50: 売上管理グラフ | Y50: 2013-05-06
Y51: 2013-07-15
Y52: 2013-09-16
Y53: 2013-09-23
Y54: 2013-10-14
Y55: 2013-11-03
Y56: 2013-11-04
Y57: 2013-11-23
Y58: 2013-12-23
Y59: 2014-01-01
Y60: 2014-01-13
Y61: 2014-02-11
Y62: 2014-03-21
Y63: 2014-04-29
Y64: 2014-05-03
Y65: 2014-05-04
Y66: 2014-05-05
Y67: 2014-05-06
Y68: 2014-07-21
Y69: 2014-09-15
Y70: 2014-09-23
Y71: 2014-10-13
Y72: 2014-11-03
Y73: 2014-11-23
Y74: 2014-11-24
Y75: 2014-12-23
Y76: 2015-01-01
Y77: 2015-01-12
Y78: 2015-02-11
Y79: 2015-03-21
Y80: 2015-04-29
Y81: 2015-05-03
Y82: 2015-05-04
Y83: 2015-05-05
Y84: 2015-05-06
Y85: 2015-07-20
Y86: 2015-09-21
Y87: 2015-09-22
Y88: 2015-09-23
Y89: 2015-10-12
Y90: 2015-11-03
Y91: 2015-11-23
Y92: 2015-12-23
Y93: 2016-01-01
Y94: 2016-01-11
Y95: 2016-02-11
Y96: 2016-03-20
Y97: 2016-03-21
Y98: 2016-04-29
Y99: 2016-05-03
Y100: 2016-05-04
Y101: 2016-05-05
Y102: 2016-07-18
Y103: 2016-09-19
Y104: 2016-09-22
Y105: 2016-10-10
Y106: 2016-11-03
Y107: 2016-11-23
Y108: 2016-12-23

Sheet 12月セールス活動表
B2: セールス活動表 | H2: 実施日：
Y6: 祝日設定
B7: 会社名 | G7: =B17 -> 2013-12-01 | Y7: 2011-01-01
Y8: 2011-01-10
B9: 数値入力用キーパッド | Y9: 2011-02-11
Y10: 2011-03-21
Y11: 2011-04-29
Y12: 2011-05-03
Y13: 2011-05-04
Y14: 2011-05-05
Y15: 2011-07-18
B16: 日付 | C16: 日割予算（千円） | D16: 実績（千円） | E16: 差（千円） | G16: 月予算達成率 | H16: 累計実績（千円） | I16: 残（千円） | J16: 備考
B17: =DATE(YEAR(TODAY()),B49,1) -> 2013-12-01 | E17: =IF(D17="","",D17-C17) ->  | F17: =IF(E17="","",E17-D17) ->  | G17: =IF(D17="","",H17/$I$7) ->  | H17: =IF(D17="","",D17) ->  | I17: =IF(D17="","",IF($I$7-H17<0,"0",$I$7-H17)) ->  | Y17: 2011-09-19
B18: =IF(ISERROR(IF(MONTH(B17+1)=MONTH(B17), B17+1,"")),"",IF(MONTH(B17+1)=MONTH(B17), B17+1,"")) -> 2013-12-02 | E18: =IF(D18="","",D18-C18) ->  | G18: =IF(D18="","",H18/$I$7) ->  | H18: =IF(D18="","",D18+H17) ->  | I18: =IF(D18="","",IF($I$7-H18<0,"0",$I$7-H18)) ->  | Y18: 2011-09-23
B19: 2013-12-03 | H19: =IF(D19="","",D19+H18) ->  | Y19: 2011-10-10
B20: 2013-12-04 | Y20: 2011-11-03
B21: 2013-12-05 | Y21: 2011-11-23
B22: 2013-12-06 | Y22: 2011-12-23
B23: 2013-12-07 | Y23: 2011-12-30
B24: 2013-12-08 | Y24: 2011-12-31
B25: 2013-12-09 | Y25: 2012-01-01
B26: 2013-12-10 | Y26: 2012-01-02
B27: 2013-12-11 | Y27: 2012-01-09
B28: 2013-12-12 | Y28: 2012-02-11
B29: 2013-12-13 | Y29: 2012-03-20
B30: 2013-12-14 | Y30: 2012-04-29
B31: 2013-12-15 | Y31: 2012-04-30
B32: 2013-12-16 | Y32: 2012-05-03
B33: 2013-12-17 | Y33: 2012-05-04
B34: 2013-12-18 | Y34: 2012-05-05
B35: 2013-12-19 | Y35: 2012-07-16
B36: 2013-12-20 | Y36: 2012-09-17
B37: 2013-12-21 | Y37: 2012-09-22
B38: 2013-12-22 | Y38: 2012-10-08
B39: 2013-12-23 | Y39: 2012-11-03
B40: 2013-12-24 | Y40: 2012-11-23
B41: 2013-12-25 | Y41: 2012-12-23
B42: 2013-12-26 | Y42: 2012-12-24
B43: 2013-12-27 | Y43: 2013-01-01
B44: 2013-12-28 | Y44: 2013-01-14
B45: 2013-12-29 | Y45: 2013-02-11
B46: 2013-12-30 | Y46: 2013-03-20
B47: 2013-12-31 | Y47: 2013-04-29
B48: =B17 -> 2013-12-01 | C48: =SUM(C17:C47) -> 0 | D48: =SUM(D17:D47) -> 0 | E48: =SUM(E17:E47) -> 0 | F48: =IF(D48="","",G48/$H$3) ->  | G48: =IF(D48=0,0,H48/$I$7) -> 0 | H48: =SUM(D17:D47) -> 0 | I48: =IF(D48="","",IF($I$7-H48<0,"0",$I$7-H48)) -> 0 | Y48: 2013-05-03
B49: 12 | Y49: 2013-05-04
B50: 売上管理グラフ | Y50: 2013-05-06
Y51: 2013-07-15
Y52: 2013-09-16
Y53: 2013-09-23
Y54: 2013-10-14
Y55: 2013-11-03
Y56: 2013-11-04
Y57: 2013-11-23
Y58: 2013-12-23
Y59: 2014-01-01
Y60: 2014-01-13
Y61: 2014-02-11
Y62: 2014-03-21
Y63: 2014-04-29
Y64: 2014-05-03
Y65: 2014-05-04
Y66: 2014-05-05
Y67: 2014-05-06
Y68: 2014-07-21
Y69: 2014-09-15
Y70: 2014-09-23
Y71: 2014-10-13
Y72: 2014-11-03
Y73: 2014-11-23
Y74: 2014-11-24
Y75: 2014-12-23
Y76: 2015-01-01
Y77: 2015-01-12
Y78: 2015-02-11
Y79: 2015-03-21
Y80: 2015-04-29
Y81: 2015-05-03
Y82: 2015-05-04
Y83: 2015-05-05
Y84: 2015-05-06
Y85: 2015-07-20
Y86: 2015-09-21
Y87: 2015-09-22
Y88: 2015-09-23
Y89: 2015-10-12
Y90: 2015-11-03
Y91: 2015-11-23
Y92: 2015-12-23
Y93: 2016-01-01
Y94: 2016-01-11
Y95: 2016-02-11
Y96: 2016-03-20
Y97: 2016-03-21
Y98: 2016-04-29
Y99: 2016-05-03
Y100: 2016-05-04
Y101: 2016-05-05
Y102: 2016-07-18
Y103: 2016-09-19
Y104: 2016-09-22
Y105: 2016-10-10
Y106: 2016-11-03
Y107: 2016-11-23
Y108: 2016-12-23

Sheet Sheet2 (hidden)
A2: 1 | B2: 1月
A3: 2 | B3: 2月
A4: 3 | B4: 3月
A5: 4 | B5: 4月
A6: 5 | B6: 5月
A7: 6 | B7: 6月
A8: 7 | B8: 7月
A9: 8 | B9: 8月
A10: 9 | B10: 9月
A11: 10 | B11: 10月
A12: 11 | B12: 11月
A13: 12 | B13: 12月
B15: 11
B16: =B15 -> 11
